Cogmind - Beta 14 @@@ ROGUE MODE // 2024.12.09 @ 13:19:28 Player: nameimpending Result: Destroyed by P-80 Master with Gamma Rifle Performance ------------- Evolutions (7) 3500 Regions Visited (10) 2000 Robots Destroyed (116) 580 Value Destroyed (2980) 2980 Prototype IDs (34) 680 Alien Tech Used (0) 0 Bonus (467) 467 TOTAL SCORE: 10207 Bonus ------- High Alert Combat Kills 107 Follower Combat Kills 60 Aligned with FarCom 300 Cogmind --------- Core Integrity 0/1300 Matter 111/300 Energy 15/100 System Corruption 17% Temperature Cool (3) Movement Flying (45) Location -3/Research Parts ------- > --- POWER (2) -------- (None) > --- PROPULSION (5) --- High-density Centrium Wheel Improved Antigrav System Cooled Antigrav System Xenon Bombardment Thruster > --- UTILITY (12) ----- Improved Terrain Scan Processor Target Analyzer Improved Target Analyzer Improved Target Analyzer Experimental Target Analyzer Quantum Capacitor Hacking Suite > --- WEAPON (2) ------- (None) > --- INVENTORY (5) ---- Micro Antimatter Reactor Improved Matter Compressor (155) Spear Heavy Pick Peak State ------------ > --- POWER ------------ Micro Fission Core Micro Fission Core > --- PROPULSION ------- Myomer Leg Antigrav System Improved Antigrav System Improved Antigrav System > --- UTILITY ---------- Medium Storage Unit Machine Analyzer Target Analyzer Improved Target Analyzer Improved Target Analyzer Core Analyzer Hacking Suite Hacking Suite Improved Hacking Suite Advanced Hacking Suite System Shield Advanced Recalibrator > --- WEAPON ----------- Railgun Heavy Pick > --- INVENTORY -------- Compact Wheel Centrium Wheel Improved Matter Compressor Improved Heavy Armor Plating Improved Component Analysis Suite Mass Driver Smartbomb Launcher Spear [Rating: 105] Favorites ----------- Power Micro Fission Core Engine Improved Deuterium Engine Power Core Micro Fission Core Reactor Micro Antimatter Reactor Propulsion Gravmag Array Treads Light Treads Leg Improved Carbon-fiber Leg Wheel Compact Wheel Hover Unit Gravmag Array Flight Unit Improved VTOL Module Utility System Shield Device Improved Terrain Scanner Storage Small Storage Unit Processor Core Analyzer Hackware System Shield Protection Improved Light Armor Plating Weapon Advanced Assault Cannon Energy Gun Gamma Rifle Energy Cannon Firepult Ballistic Gun Assault Rifle Ballistic Cannon Advanced Assault Cannon Launcher Smartbomb Launcher Impact Weapon Powered Hammer Slashing Weapon Mining Claw Piercing Weapon Spear Build | -11 -10 -10 -10 -9 -8 -7 -6 -5 -4 -3 ------- Run | Yrd Mat Min Exi Min Mat Fac Fac Fac Fac Res Slots Evolved 14 | . . . . . 4 2 2 2 2 2 Power 1 | . . . . . . . . . 1 . Propulsion 3 | . . . . . 1 1 . . . 1 Utility 10 | . . . . . 3 1 2 2 1 1 Weapon . | . . . . . . . . . . . Parts Attached 174 | 8 6 16 1 . 23 29 23 21 22 25 Power 24 | 1 3 3 . . 6 3 3 1 2 2 Engine 12 | 1 3 2 . . 3 3 . . . . Core 10 | . . 1 . . 3 . 3 1 2 . Reactor 2 | . . . . . . . . . . 2 Propulsion 60 | 2 . 8 1 . 7 9 6 7 10 10 Treads 5 | 2 . 2 . . . 1 . . . . Leg 9 | . . 2 . . . 6 . . 1 . Wheel 6 | . . . 1 . . . . . 1 4 Hover 32 | . . 4 . . 3 2 6 7 8 2 Flight 8 | . . . . . 4 . . . . 4 Utility 48 | 2 . 2 . . 5 8 7 12 6 6 Device 8 | 1 . . . . . . 1 3 1 2 Storage 5 | 1 . 1 . . . . . 3 . . Processor 13 | . . 1 . . 1 3 4 1 1 2 Hackware 9 | . . . . . 2 1 1 3 1 1 Protection 13 | . . . . . 2 4 1 2 3 1 Artifact . | . . . . . . . . . . . Weapon 42 | 3 3 3 . . 5 9 7 1 4 7 Energy Gun 2 | . . . . . . . . . . 2 Energy Cannon 2 | . . . . . . 2 . . . . Ballistic Gun 12 | 3 3 1 . . 3 1 . . 1 . Ballistic Cannon 9 | . . 1 . . . 3 1 1 2 1 Launcher 2 | . . . . . . 1 . . . 1 Special Weapon . | . . . . . . . . . . . Impact Weapon 6 | . . . . . 1 2 3 . . . Slashing Weapon 2 | . . 1 . . 1 . . . . . Piercing Weapon 7 | . . . . . . . 3 . 1 3 Special Melee Weapon . | . . . . . . . . . . . Unidentified Prototypes 6 | . . . . . 1 . 1 1 . 3 Parts Lost 48 | . . 6 . . 2 6 6 1 4 23 Power 5 | . . 1 . . . . 1 . . 3 Propulsion 19 | . . 3 . . 2 3 . . 3 8 Utility 18 | . . 1 . . . 3 4 1 1 8 Weapon 6 | . . 1 . . . . 1 . . 4 Highest Loss Streak 12 | . . 3 . . 1 4 3 1 2 12 To Critical Strikes 1 | . . . . . . . . . . 1 Average Slot Usage (%) 85 | . 99 87 77 85 64 82 87 96 95 56 Engine 5 | . 13 10 14 14 . 4 2 . . . Core 2 | . . 3 . . 1 . 3 5 7 2 Treads 4 | . 28 5 . . . 1 . . . . Hover 12 | . . 17 14 14 10 10 15 22 20 6 Flight 1 | . . . . . 15 4 . . . 2 Device 2 | . 14 . . . . . 3 2 . . Storage 6 | . 14 20 14 14 9 2 . 4 5 1 Processor 18 | . . 3 14 14 9 19 29 29 26 21 Hackware 10 | . . . . . 7 21 10 15 21 8 Protection 2 | . . . . . 2 2 6 1 4 . Ballistic Gun 5 | . 28 20 . . 1 . . . 2 . Ballistic Cannon 2 | . . . . . . 4 6 5 2 . Impact Weapon 2 | . . . . . 4 5 5 . . . Slashing Weapon 1 | . . 1 14 14 1 . . . . . Piercing Weapon 1 | . . . . . . . . 5 5 3 Peak Build Rating 105 | 9 9 9 10 12 31 55 66 83 99 105 Average Rating 45 | 5 8 7 9 10 21 46 61 76 92 63 On Entrance 33 | . 9 9 8 10 12 28 52 61 80 94 Naked Turns . | . . . . . . . . . . . Heaviest Build 41 | 15 15 14 12 12 15 37 29 41 39 34 Greatest Support 50 | 40 40 40 16 16 16 50 48 48 48 36 Greatest Overweight (x) 4 | 4 . 3 3 . 2 1 1 . 1 4 Average Overweight (x) . | 1 . . 1 . . . . . . . Largest Inventory Capacity 10 | 8 8 8 8 8 8 8 5 10 10 10 Average Capacity 7 | 7 8 8 8 8 8 5 5 9 10 6 Most Carried 10 | 3 8 8 8 8 8 8 5 10 10 10 Average Carried 6 | 1 6 7 7 7 7 5 4 8 9 5 Final Capacity 10 | 8 8 8 8 8 8 5 5 10 10 5 Final Carried 10 | 3 8 7 7 8 8 5 3 10 10 4 Class Distribution -------------------- 52% | Hacker-Mutant 42% | Mutant 4% | Scavenger-Mutant Dominant Class ---------------- Mutant | -10/Materials Mutant | -10/Mines Mutant | -10/Exiles Mutant | -9/Mines Mutant | -8/Materials Hacker-Mutant | -7/Factory Hacker-Mutant | -6/Factory Hacker-Mutant | -5/Factory Hacker-Mutant | -4/Factory Scavenger-Mutant | -3/Research Resources | -11 -10 -10 -10 -9 -8 -7 -6 -5 -4 -3 ----------- Run | Yrd Mat Min Exi Min Mat Fac Fac Fac Fac Res Matter Collected 2379 | 244 262 342 . . 202 422 281 316 226 84 Remotely . | . . . . . . . . . . . Salvage Created 3941 | 24 328 332 . . 98 962 1502 203 226 266 Parts 201 | 4 27 22 . . 3 44 51 18 16 16 Haulers Intercepted 2 | . . . . . 1 1 . . . . Recyclers Shooed 2 | . . . . . . . 2 . . . Parts Field Recycled . | . . . . . . . . . . . Retrieved Matter . | . . . . . . . . . . . Parts Self-Destructed . | . . . . . . . . . . . Prevented . | . . . . . . . . . . . Kills | -11 -10 -10 -10 -9 -8 -7 -6 -5 -4 -3 ------- Run | Yrd Mat Min Exi Min Mat Fac Fac Fac Fac Res Combat Hostiles Destroyed 65 | . 13 7 . . 2 16 15 2 3 7 Melee 14 | . . . . . . 2 7 2 3 . Guns 21 | . 13 7 . . 1 . . . . . Cannons 6 | . . . . . . 4 . . . 2 AOE 15 | . . . . . . 9 1 . . 5 Classes Destroyed 13 | 1 3 2 . . 2 4 1 . . . Worker 13 | . . 1 . . . 3 6 3 . . Builder 16 | . . . . . . 7 8 . 1 . Tunneler 5 | 1 . 1 . . . 1 1 . 1 . Hauler 2 | . . . . . 1 1 . . . . Recycler 7 | . . 1 . . . 1 5 . . . Operator 2 | . . . . . . 1 1 . . . Watcher 6 | . 2 . . . . 1 2 1 . . Swarmer 25 | . 9 3 . . 1 3 6 . . 3 Cutter 3 | . . . . . . . 3 . . . Grunt 18 | . 4 4 . . . 7 2 . . 1 Sentry 2 | . . . . . 1 . 1 . . . Hunter 3 | . . . . . . 2 . . . 1 Programmer 14 | . . . . . . 4 3 2 3 2 Best Kill Streak 11 | 1 4 3 . . 1 11 10 2 1 5 Combat Bots Only 6 | . 4 2 . . 1 6 5 2 1 5 Max Kills in Single Turn 4 | 1 1 1 . . 1 4 2 1 1 3 Gunslinging . | . . . . . . . . . . . Exploded 3 | . . . . . . 3 1 . . 3 Melee 1 | . . . . . . 1 1 1 1 . Uniques/NPCs Destroyed . | . . . . . . . . . . . Combat | -11 -10 -10 -10 -9 -8 -7 -6 -5 -4 -3 -------- Run | Yrd Mat Min Exi Min Mat Fac Fac Fac Fac Res Hostile Shots Fired 739 | . 55 101 . . 28 128 115 10 31 271 Missed 241 | . 13 30 . . 7 53 37 3 10 88 Damage Taken 8717 | . 410 787 . . 311 1118 1719 219 580 3573 Core 2394 | . 72 125 . . 47 209 455 46 125 1315 Absorbed by Shields . | . . . . . . . . . . . Regen/Repaired (Parts) 28 | . . . . . . . . . . 28 Core Remaining (%) 73 | 100 . . . 21 91 70 46 95 89 . Volleys Fired 110 | 1 36 39 . . 13 10 . . . 11 Largest 2 | 2 2 2 . . 1 2 . . . 2 Hottest 250 | 40 40 40 . . 25 250 . . . 132 Shots Fired 192 | 2 72 77 . . 13 13 1 1 . 13 Gun 169 | 2 72 77 . . 13 1 . . . 4 Cannon 20 | . . . . . . 11 1 1 . 7 Launcher 3 | . . . . . . 1 . . . 2 Special . | . . . . . . . . . . . Kinetic 181 | 2 72 77 . . 13 8 1 1 . 7 Thermal 4 | . . . . . . 4 . . . . Explosive 3 | . . . . . . 1 . . . 2 Electromagnetic 4 | . . . . . . . . . . 4 Robot Hit Streak 13 | 1 8 10 . . 13 3 . . . 4 Robot Miss Streak 5 | . 4 5 . . 1 4 . . . 4 Penetration Max . | . . . . . . . . . . . Secondary Targets 3 | . 1 2 . . . . . . . . Max Gunslinging Chain 1 | . 1 1 . . . . . . . . Shots Hit Robots 232 | 1 44 54 . . 15 22 55 8 16 17 Core Hits 129 | 1 22 21 . . 3 39 15 7 8 13 Critical Kills 2 | . . . . . . 1 1 . . . Critical Parts Destroyed 14 | . . . . . 2 4 8 . . . Critical Strikes 23 | . . . . . 2 5 10 1 2 3 Blast 1 | . . . . . . . . . . 1 Smash 16 | . . . . . 2 5 9 . . . Impale 6 | . . . . . . . 1 1 2 2 Melee Attacks 227 | . . 7 . . 12 32 100 20 31 25 Impact 129 | . . . . . 9 32 88 . . . Slashing 10 | . . 7 . . 3 . . . . . Piercing 88 | . . . . . . . 12 20 31 25 Sneak Attacks 34 | . . 3 . . 1 6 19 3 2 . Combat Hostiles 1 | . . . . . . 1 . . . . Follow-up Attacks . | . . . . . . . . . . . Damage Inflicted 9730 | 15 581 628 . . 359 2773 3514 338 528 994 Guns 1252 | 15 571 411 . . 213 14 . . . 28 Cannons 502 | . . . . . . 308 . . . 194 Explosions 2126 | . . . . . . 1420 245 . . 461 Melee 5840 | . . 217 . . 146 1031 3269 338 528 311 Ramming 10 | . 10 . . . . . . . . . Kinetic 1581 | 15 571 411 . . 213 177 . . . 194 Thermal 1370 | . . . . . . 1370 . . . . Explosive 901 | . . . . . . 195 245 . . 461 Electromagnetic 28 | . . . . . . . . . . 28 Impact 4075 | . . . . . 146 1031 2898 . . . Slashing 217 | . . 217 . . . . . . . . Piercing 1548 | . . . . . . . 371 338 528 311 Highest Corruption 17 | . 4 4 4 4 . 3 8 1 5 17 Average Corruption 4 | . 1 4 4 4 . 2 3 1 2 12 Corruption Purged . | . . . . . . . . . . . Corruption Blocked . | . . . . . . . . . . . Effects 94 | . 13 17 11 . . 4 23 1 4 21 Message Errors 22 | . 3 5 4 . . 1 6 . . 3 Matter Fused 17 | . 3 2 3 . . . 5 . 1 3 Heat Flow Errors 10 | . 1 2 1 . . . 1 . . 5 Energy Discharges 10 | . . . . . . 1 7 . . 2 Parts Rejected 2 | . 1 . . . . . . . . 1 Parts Fused 1 | . . 1 . . . . . . . . Data Loss (minor) 14 | . 3 4 . . . . 2 . 2 3 Data Loss (major) 7 | . 1 1 1 . . 1 1 . 1 1 Misfires 4 | . . 1 . . . 1 1 1 . . Alerts 4 | . 1 . 2 . . . . . . 1 Misdirections 1 | . . . . . . . . . . 1 Weapon Failures 2 | . . 1 . . . . . . . 1 Overload Shots . | . . . . . . . . . . . Overflow Damage 2741 | . . 31 . . 130 774 1697 26 68 15 Projectiles 34 | . . . . . . . 34 . . . Explosions 232 | . . . . . . 157 75 . . . Melee 2475 | . . 31 . . 130 617 1588 26 68 15 Knockbacks 16 | . . . . . . . 14 . . 2 Impact 13 | . . . . . . . 13 . . . Kinetic 2 | . . . . . . . . . . 2 Secondary 1 | . . . . . . . 1 . . . Self-Inflicted Damage 325 | . . . . . . 125 200 . . . Shots 7 | . . . . . . 5 2 . . . Rammed 3 | . 3 . . . . . . . . . Targets Rammed 4 | . 3 . . . . 1 . . . . Kicked 1 | . . . . . . 1 . . . . Crushed . | . . . . . . . . . . . Highest Temperature 450 | . 207 205 233 . 17 450 183 132 7 263 Average Temperature 57 | . 81 70 123 . 8 139 70 50 4 81 Received Heat Transfer 1155 | . 132 354 . . 180 258 153 . . 78 Effects 2 | . . . 1 . . 1 . . . . Shutdowns 1 | . . . . . . 1 . . . . Interference 1 | . . . 1 . . . . . . . Siege Activations . | . . . . . . . . . . . Robots Corrupted 17 | . . . . . 2 1 14 . . . Combat Hostiles 8 | . . . . . 1 . 7 . . . Parts Fried 39 | . . . . . 2 8 29 . . . Impact Corruptions 70 | . . . . . 4 17 49 . . . Robots Melted 3 | . . . . . . 3 . . . . Combat Hostiles 1 | . . . . . . 1 . . . . Parts Melted 18 | . . . . . . 18 . . . . Heat Transferred 5340 | . . . . . . 5340 . . . . Parts Sabotaged . | . . . . . . . . . . . Parts Stolen . | . . . . . . . . . . . Parts Stripped . | . . . . . . . . . . . Power Chain Reactions . | . . . . . . . . . . . Alert | -11 -10 -10 -10 -9 -8 -7 -6 -5 -4 -3 ------- Run | Yrd Mat Min Exi Min Mat Fac Fac Fac Fac Res Peak Influence 553 | 5 301 427 . . 362 503 553 289 189 170 Initial 261 | . 3 117 . . . 86 153 261 44 33 Average 177 | 1 116 262 . . 162 250 222 181 65 49 Maximum Alert Level 2 | . 1 2 . . 1 2 2 1 . . Low Security (%) 61 | 100 75 8 . 100 61 45 54 60 100 100 Level 1 32 | . 24 87 . . 38 41 31 39 . . Level 2 6 | . . 3 . . . 13 14 . . . Level 3 . | . . . . . . . . . . . Level 4 . | . . . . . . . . . . . Level 5 . | . . . . . . . . . . . High Security . | . . . . . . . . . . . Max Security . | . . . . . . . . . . . Squads Dispatched 37 | . 3 1 . . 2 11 8 4 2 6 Investigation 7 | . 2 1 . . . 3 . . . 1 Extermination 10 | . . . . . . 2 3 2 2 1 Reinforcement 16 | . 1 . . . 2 5 5 2 . 1 Assault . | . . . . . . . . . . . Garrison 4 | . . . . . . 1 . . . 3 Intercept . | . . . . . . . . . . . Searches Triggered . | . . . . . . . . . . . Construction Impeded 4 | . . . . . . 2 1 . . 1 Haulers Reinforced 2 | . . . . . . 2 . . . . Active Scanning Responses . | . . . . . . . . . . . Cargo Convoy Interrupts . | . . . . . . . . . . . Stealth | -11 -10 -10 -10 -9 -8 -7 -6 -5 -4 -3 --------- Run | Yrd Mat Min Exi Min Mat Fac Fac Fac Fac Res Distress Signals 7 | . 1 . . . 3 2 1 . . . Communications Jammed . | . . . . . . . . . . . Distress Signals . | . . . . . . . . . . . Times Spotted 158 | . 23 19 . . 17 35 34 9 8 13 Peak Tracking Total 12 | . 4 4 . . 7 12 9 3 3 9 Tactical Retreats 29 | . 4 6 . . 6 5 3 1 1 3 Traps | -11 -10 -10 -10 -9 -8 -7 -6 -5 -4 -3 ------- Run | Yrd Mat Min Exi Min Mat Fac Fac Fac Fac Res Traps Triggered 16 | . 4 . . . . 3 6 1 2 . Indirectly . | . . . . . . . . . . . Trap Hack Attempts . | . . . . . . . . . . . Triggered . | . . . . . . . . . . . Disarmed . | . . . . . . . . . . . Reprogrammed 9 | . . . . . 1 5 . 3 . . Reused 2 | . . . . . . 1 . 1 . . Traps Extracted . | . . . . . . . . . . . Installed . | . . . . . . . . . . . Triggered 2 | . . . . . . 1 . 1 . . Machines | -11 -10 -10 -10 -9 -8 -7 -6 -5 -4 -3 ---------- Run | Yrd Mat Min Exi Min Mat Fac Fac Fac Fac Res Machines Disabled 3 | . . . . . . 1 2 . . . Max in Single Turn 2 | . . . . . . 1 2 . . . Machines Repaired . | . . . . . . . . . . . Machines Dismantled . | . . . . . . . . . . . Machines Sabotaged . | . . . . . . . . . . . Overloaded Fab Kills . | . . . . . . . . . . . Hacking | -11 -10 -10 -10 -9 -8 -7 -6 -5 -4 -3 --------- Run | Yrd Mat Min Exi Min Mat Fac Fac Fac Fac Res Machines Accessed 64 | . 8 1 1 1 9 12 10 10 9 3 Terminals 45 | . 6 . . . 8 9 6 7 7 2 Fabricators 2 | . . . . . . 1 1 . . . Repair Stations 1 | . . . . . . . . . . 1 Recycling Units 3 | . 2 . . . . . 1 . . . Scanalyzers 6 | . . . . . . 1 1 2 2 . Garrison Access 4 | . . . . . 1 1 1 1 . . Total Hacks 186 | . 20 1 1 1 42 40 27 30 18 6 Successful 125 | . 13 1 1 1 29 30 17 20 11 2 Failed 61 | . 7 . . . 13 10 10 10 7 4 Catastrophic 11 | . . . . . 1 . 3 3 1 3 Database Lockouts . | . . . . . . . . . . . Manual 102 | . 18 . 1 . 20 18 14 18 11 2 Terminals 145 | . 18 . . . 38 32 14 25 14 4 Fabricators 2 | . . . . . . 1 1 . . . Repair Stations 2 | . . . . . . . . . . 2 Recycling Units 4 | . 2 . . . . . 2 . . . Scanalyzers 20 | . . . . . . 4 9 3 4 . Garrison Access 10 | . . . . . 4 3 1 2 . . Terminal Hacks 41 | . 2 1 1 1 12 13 2 7 2 . Robot Analysis 1 | . . . . . 1 . . . . . Prototype ID Bank 2 | . . . . . 1 . . 1 . . Open Door 2 | . . 1 . 1 . . . . . . Branch Access Points 2 | . . . . . . 1 . 1 . . Emergency Access Points 3 | . . . . . 2 1 . . . . Terminal Index 3 | . . . . . . 1 . 1 1 . Repair Station Index 4 | . . . . . . 1 1 1 1 . Recycling Unit Index 1 | . . . . . . 1 . . . . Alert Level 4 | . 2 . . . . 1 1 . . . Unreport Threat 1 | . . . . . . 1 . . . . Locate Traps 3 | . . . . . 1 1 . 1 . . Reprogram Traps 3 | . . . . . 1 1 . 1 . . Dispatch Records 1 | . . . . . . 1 . . . . Maintenance Status 2 | . . . . . 1 1 . . . . Security Status 1 | . . . . . 1 . . . . . Transport Status 1 | . . . . . 1 . . . . . Hauler Manifests 2 | . . . . . 1 1 . . . . Registered Components 2 | . . . . . . 1 . 1 . . Zone Layout 2 | . . . . . 2 . . . . . Derelict Proto ID Bank 1 | . . . 1 . . . . . . . Fabricator Hacks 1 | . . . . . . 1 . . . . Network Status 1 | . . . . . . 1 . . . . Repair Station Hacks 2 | . . . . . . . . . . 2 Scan Component 1 | . . . . . . . . . . 1 Repair 1 | . . . . . . . . . . 1 Recycling Unit Hacks . | . . . . . . . . . . . Scanalyzer 18 | . . . . . . 4 8 2 4 . Insert Component 9 | . . . . . . 2 4 1 2 . Analyze 9 | . . . . . . 2 4 1 2 . Garrison Access Hacks . | . . . . . . . . . . . Unauthorized Hacks 63 | . 11 . . . 17 12 7 11 5 . Terminals 52 | . 9 . . . 13 9 6 10 5 . Track 15 | . 4 . . . 5 2 1 3 . . Assimilate 8 | . . . . . 3 1 . 3 1 . Botnet 29 | . 5 . . . 5 6 5 4 4 . Fabricators 1 | . . . . . . . 1 . . . Report 1 | . . . . . . . 1 . . . Repair Stations . | . . . . . . . . . . . Recycling Units 2 | . 2 . . . . . . . . . Tunnel 2 | . 2 . . . . . . . . . Scanalyzers . | . . . . . . . . . . . Garrison Access 8 | . . . . . 4 3 . 1 . . Broadcast 2 | . . . . . 1 . . 1 . . Reprogram 2 | . . . . . 1 1 . . . . Intercept 2 | . . . . . 1 1 . . . . Watchers 2 | . . . . . 1 1 . . . . Data Cores Recovered . | . . . . . . . . . . . Used . | . . . . . . . . . . . Hacking Detections 50 | . 6 . . . 8 10 7 9 8 2 Full Trace Events 1 | . . . . . . . . . . 1 Feedback Events 1 | . . . . . . . . . . 1 Corruption 1 | . . . . . . . . . . 1 Feedback Blocked . | . . . . . . . . . . . Robot Schematics Acquired . | . . . . . . . . . . . Robots Built . | . . . . . . . . . . . Authchips . | . . . . . . . . . . . Time . | . . . . . . . . . . . Total Robot Build Rating . | . . . . . . . . . . . Part Schematics Acquired 9 | . . . . . . 2 4 1 2 . Parts Built . | . . . . . . . . . . . Authchips . | . . . . . . . . . . . Time . | . . . . . . . . . . . Total Part Build Rating . | . . . . . . . . . . . Parts Repaired 1 | . . . . . . . . . . 1 Time 44 | . . . . . . . . . . 44 Parts Recycled . | . . . . . . . . . . . Recycled Matter . | . . . . . . . . . . . Retrieved Matter . | . . . . . . . . . . . Retrieved Components . | . . . . . . . . . . . Parts Scanalyzed 9 | . . . . . . 2 4 1 2 . Part Schematics Acquired 9 | . . . . . . 2 4 1 2 . Parts Damaged 1 | . . . . . . . 1 . . . Bothacking | -11 -10 -10 -10 -9 -8 -7 -6 -5 -4 -3 ------------ Run | Yrd Mat Min Exi Min Mat Fac Fac Fac Fac Res Used RIF Installer . | . . . . . . . . . . . Robots Hacked . | . . . . . . . . . . . Non-combat . | . . . . . . . . . . . Combat . | . . . . . . . . . . . Robot Hacks Applied . | . . . . . . . . . . . Relay Couplers Released 3 | . . . . . . . 3 . . . Programmers 3 | . . . . . . . 3 . . . Fabnet Peak Effective % . | . . . . . . . . . . . Robots Rewired . | . . . . . . . . . . . Allies Hacked . | . . . . . . . . . . . Hacks Repelled . | . . . . . . . . . . . Allies | -11 -10 -10 -10 -9 -8 -7 -6 -5 -4 -3 -------- Run | Yrd Mat Min Exi Min Mat Fac Fac Fac Fac Res Total Allies 7 | . . 1 . . 1 2 . 2 1 . Largest Group 1 | . . 1 1 . 1 1 . 1 1 . Highest-Rated Group 45 | . . 31 31 . 10 26 . 10 45 . Highest-Rated Ally 45 | . . 31 31 . 10 26 . 10 45 . Total Orders . | . . . . . . . . . . . Ally Attacks 6 | . . 1 . . . 5 . . . . Total Damage 169 | . . 20 . . . 149 . . . . Kills 3 | . . 1 . . . 2 . . . . Allies Corrupted . | . . . . . . . . . . . Allies Melted . | . . . . . . . . . . . Intel | -11 -10 -10 -10 -9 -8 -7 -6 -5 -4 -3 ------- Run | Yrd Mat Min Exi Min Mat Fac Fac Fac Fac Res Robot Analysis Total 1 | . . . . . 1 . . . . . Derelict Logs Recovered 2 | . . 2 . . . . . . . . Drone Launches . | . . . . . . . . . . . Drone Recoveries . | . . . . . . . . . . . Exploration | -11 -10 -10 -10 -9 -8 -7 -6 -5 -4 -3 ------------- Run | Yrd Mat Min Exi Min Mat Fac Fac Fac Fac Res Turns Passed 9064 | 80 1117 684 516 155 465 1853 1820 1008 678 688 Spaces Moved 10992 | 37 612 724 383 154 825 2580 2533 1362 1009 773 Core 169 | 16 . 19 127 . . 4 . . . 3 Treads 734 | 21 612 94 . . . 7 . . . . Legs 41 | . . 3 . . . 38 . . . . Wheels 489 | . . . 253 154 7 . . . 11 64 Hover 7654 | . . 608 3 . 221 1754 2533 1362 998 175 Flight 1905 | . . . . . 597 777 . . . 531 Fastest Speed 32 | 50 160 56 100 100 32 34 56 55 48 37 Average Speed 67 | 173 160 73 133 100 40 57 58 63 51 54 Slowest Speed 250 | 250 160 200 200 100 175 240 150 71 116 250 Overloaded Moves . | . . . . . . . . . . . Propulsion Burnouts . | . . . . . . . . . . . Robots Hopped 21 | . . . . . . 16 . . . 5 Cave-ins Triggered . | . . . . . . . . . . . Exploration Rate (%) 47 | 4 63 98 87 45 60 55 41 27 24 19 Regions Visited 10 Branch Regions 3 Pre-discovered Areas 4 | . 2 2 . . . . . . . . Known Exits Taken 6 | . . 1 1 1 1 . 1 1 . . Unknown Exits Taken 4 | 1 1 . . . . 1 . . 1 . Scrap Searched 1 | . . 1 . . . . . . . . Spaces Dug 77 | . . . . . 9 14 26 9 9 10 Terrain Destroyed 207 | . . . . . 9 74 69 10 9 36 Melee 77 | . . . . . 9 14 26 9 9 10 Projectile 4 | . . . . . . . . 1 . 3 AOE 126 | . . . . . . 60 43 . . 23 Terrain Rammed . | . . . . . . . . . . . Walls Destroyed . | . . . . . . . . . . . Machines Disabled . | . . . . . . . . . . . Actions | -11 -10 -10 -10 -9 -8 -7 -6 -5 -4 -3 --------- Run | Yrd Mat Min Exi Min Mat Fac Fac Fac Fac Res Total 12119 | 47 679 794 388 155 924 2866 2734 1470 1098 964 Wait 462 | . 10 4 3 . 26 176 53 35 25 130 Move 10942 | 36 611 723 382 153 824 2549 2532 1361 1008 763 Hop 19 | . . . . . . 14 . . . 5 Pick Up 51 | 2 7 . 1 1 4 10 12 11 2 1 Fast Attach 95 | 7 2 5 . . 12 17 8 15 14 15 Attach 36 | . . 3 1 . 9 7 7 1 1 7 Detach 30 | . . 1 . . 11 9 . 4 2 3 Swap 43 | 1 4 8 . . 2 5 8 5 7 3 Drop 82 | . 6 4 1 1 11 18 14 18 8 1 Fire 110 | 1 36 39 . . 13 10 . . . 11 Melee 227 | . . 7 . . 12 32 100 20 31 25 Ram . | . . . . . . . . . . . Kick 1 | . . . . . . 1 . . . . Crush 3 | . 3 . . . . . . . . . Escape Stasis 18 | . . . . . . 18 . . . . Rewire . | . . . . . . . . . . . Trap . | . . . . . . . . . . . Miscellaneous . | . . . . . . . . . . . Route ------- -11/Scrapyard -10/Materials (discovered 2 exits: [*Mat] / *Min) -10/Mines (discovered 3 exits: [*Mat x2] / *Exi) -10/Exiles -9/Mines -8/Materials (discovered 3 exits: *Fac / *Sto x2) -7/Factory (discovered 4 exits: *Fac x2 / *Low x2) -6/Factory -5/Factory (discovered 3 exits: *Fac / Upp x2) -4/Factory -3/Research History --------- Turn | Location | Event 31 | -11/Scrapyard | Discovered new exit (range 15) 81 | -11/Scrapyard | Entered Materials 281 | -10/Materials | Discovered new exit (range 16) 317 | -10/Materials | Build established: Mutant 524 | -10/Materials | Discovered new exit (range 9) 1198 | -10/Materials | Entered Mines 1254 | -10/Mines | Lost 3 parts (1n1u1w) 1375 | -10/Mines | Core integrity fell below 50% 1495 | -10/Mines | Discovered new exit (range 8) 1540 | -10/Mines | Discovered new exit (range 11) 1605 | -10/Mines | Learned location of Storage (-8) 1693 | -10/Mines | Met a Derelict shopkeep closing up shop 1718 | -10/Mines | Learned Materials terminal intel 1718 | -10/Mines | Learned location of Zion (-6) 1847 | -10/Mines | Escorted by a lone wolf Derelict 1872 | -10/Mines | Deemed a non-threat by the Exiles lab entrance 1874 | -10/Mines | Discovered new exit (range 5) 1880 | -10/Mines | Identified exit to Exiles 1882 | -10/Mines | Entered Exiles 1882 | -10/Exiles | Accompanied by 1 ally 1939 | -10/Exiles | Met 8R-AWN 1967 | -10/Exiles | Met EX-HEX 2031 | -10/Exiles | Met EX-BIN 2057 | -10/Exiles | Aligned with FarCom system 2059 | -10/Exiles | Given EX-Vault access code 2111 | -10/Exiles | Opened EX-Vault 2122 | -10/Exiles | Found Firepult 2160 | -10/Exiles | Warned to stay clear of 0b10 Research branches 2193 | -10/Exiles | Met EX-DEC 2228 | -10/Exiles | Visited The Gauntlet 2390 | -10/Exiles | Discovered new exit (range 10) 2397 | -10/Exiles | Identified exit to Mines 2398 | -10/Exiles | Left Exiles lab with Firepult 2398 | -10/Exiles | Entered Mines 2459 | -9/Mines | Found a hidden stash of uninstalled traps 2493 | -9/Mines | Found the Drone Emporium 2498 | -9/Mines | Found Prototype Device 2543 | -9/Mines | Discovered new exit (range 11) 2552 | -9/Mines | Identified exit to Materials 2553 | -9/Mines | Entered Materials 2553 | -8/Materials | Evolved 4 slots: Propulsion x1, Utility x3 2554 | -8/Materials | Loaded intel: 12 terminal locations 2871 | -8/Materials | Discovered new exit (range 3) 2872 | -8/Materials | Identified exit to Factory 2898 | -8/Materials | Discovered new exit (range 4) 2911 | -8/Materials | Discovered new exit (range 18) 2965 | -8/Materials | Identified exit to Storage 3018 | -8/Materials | Entered Factory 3018 | -7/Factory | Evolved 2 slots: Propulsion x1, Utility x1 3136 | -7/Factory | Build established: Hacker-Mutant 3379 | -7/Factory | Discovered new exit (range 9) 3449 | -7/Factory | Garrison activated, responded to threat 3623 | -7/Factory | Lost 4 parts (3n1u) 3890 | -7/Factory | Discovered new exit (range 11) 4140 | -7/Factory | Identified exit to Lower Caves 4850 | -7/Factory | Discovered new exit (range 14) 4871 | -7/Factory | Entered another Factory area 4871 | -6/Factory | Evolved 2 slots: Utility x2 6177 | -6/Factory | Discovered new exit (range 15) 6352 | -6/Factory | Build established: Mutant 6667 | -6/Factory | Core integrity fell below 50% 6688 | -6/Factory | Identified exit to Factory 6691 | -6/Factory | Entered another Factory area 6691 | -5/Factory | Evolved 2 slots: Utility x2 6695 | -5/Factory | Lost 3 parts (1p1u1w) 6739 | -5/Factory | Discovered new exit (range 3) 6739 | -5/Factory | Identified exit to Factory 7211 | -5/Factory | Build established: Hacker-Mutant 7520 | -5/Factory | Identified exit to Upper Caves 7699 | -5/Factory | Entered another Factory area 7699 | -4/Factory | Evolved 2 slots: Power x1, Utility x1 8239 | -4/Factory | Discovered new exit (range 5) 8377 | -4/Factory | Entered Research 8377 | -3/Research | Evolved 2 slots: Propulsion x1, Utility x1 8547 | -3/Research | Garrison activated, responded to threat 8590 | -3/Research | Core integrity fell below 50% 8610 | -3/Research | Lost 12 parts (2p4n5u1w) 8628 | -3/Research | System corruption reached 10% 8675 | -3/Research | Lost 8 parts (1p3n3u1w) 8677 | -3/Research | Core integrity fell below 20% 8690 | -3/Research | Found Prototype Processor 8690 | -3/Research | Identified Exp. Target Analyzer 8775 | -3/Research | Lost 3 parts (1n2w) 8879 | -3/Research | Repaired Xenon Bombardment Thruster 8919 | -3/Research | Build established: Scavenger-Mutant 9048 | -3/Research | Found Unknown Device 9048 | -3/Research | Identified Quantum Capacitor 9065 | -3/Research | Destroyed by P-80 Master with Gamma Rifle Last Messages --------------- 08937_ U-05 Engineer builds a Wall. 08945_ System corrupted: Heat flow error (+204). 08975_ System corrupted: Matter fused (-8). 08977_ Acquired Prototype Hover Unit. 08977_ Identified Cld. Antigrav System. 08982_ Acquired 22 matter. 08983_ Acquired 50 matter. 09002_ System corrupted: Matter fused (-7). 09002_ ALERT: Rogue bot located, Programmers report to Research Zone 4S. 09002_ U-05 Engineer builds a Wall. 09005_ Connecting with Terminal... 09026_ System corrupted: Heat flow error (+138). 09041_ Connecting with Terminal... Feedback: System corruption (+1%). 09041_ ALERT: Suspicious activity at Terminal R017. Dispatching Investigation squad. 09043_ RGMFSY#C5IL:7|O/AWVDNX#L 09048_ Acquired Unknown Device. 09048_ Identified Quantum Capacitor. Map ----- +----------------------------------------------------+ | ?????????????????????????????????????????????""??? | | ?????????????????????????????????????????????S???? | | ?????????????????????????????????????????????""??? | | ?????????????????????????????????????????????""??? | | ?????????????????????????????????????????????""??? | | ?????????????????????????????????????????????????? | | ?????????????????????????????????????????????????? | | ?????????????????????????????????????????????????? | | ?????????????????????????????????????????????????? | | ???????????????????w?????????????????????????????? | | ???????????????????????????? ?????????????????? | | ???????????????????????????# #????????????????? | | ???????????????????????????# #????????????????? | | ???????????????????????????# #????????????????? | | ???????????????????????????# #????????????????? | | ???????????????????????????# #????????????????? | | ???????????????????????????# #????????????????? | | ???????????????????????????# #????????????????? | | ???????????????????????????# #????????????????? | | ???????????????????????????# #????????????????? | | ???????????????????????????# #????????????????? | | ??????????????????########## #??####??????????? | | ??????????????????# # #??#""#??????????? | | ??????????????????# # ####T"############ | | ??????????????????# + | | ??????????????????# p@ # | | ??????????????????# """p # | | ??????????????????# """ # | | ??????????????????# """ ###################### | | ??????????????????# #????????????????????# | | ??????????????????# #????????????????????# | | ??????????????????##########????????????????????# | | ???????????????????????????????????????###??????# | | ???????????????????????????????????????########## | | ???????????????????????????????????????# # | | ???????????????????????????????????????# # | | ??????????????????????????????????????## #^ | | ?????????????????????????????????####### # | | ?????????????????????????????????# # """ # | | ?????????????????????????????????# # """ # | | ?????????????????????????????????# # """ # | | ?????????????????????????????????# # # | | ?????????????????????????????????# # # | | ?????????????????????????????????# ########+# | | ?????????????????????????????????# [ # | | ?????????????????????????????????# # | | ???????????????????############### # | | ???????????????????# ## # | | ???????????????????# ## # | | ???????????????????# """ """ ## # """"" | +----------------------------------------------------+ Best States ------------- Heat Dissipation 46 Energy Generation 25 Energy Capacity 290 Matter Stores 400 Matter Capacity 400 Sight Range 16 Terrain Scan Range 16 Terrain Scan Density 110 Cloak Strength 2 Armor Coverage 600 Resistance: EX 50 Power Shielding 66 Melee Speed Boost 20 Evasion (%) 63 Melee Accuracy 6 Target Analysis 13 Core Analysis 9 Recoil Reduction 2 Offensive Hacking 46 Defensive Hacking 20 Item Schematics ----------------- Melee Analysis Suite | -7/Factory | Scanalyzed Xenon Bombardment Thruster | -7/Factory | Scanalyzed Imp. Target Analyzer | -6/Factory | Scanalyzed Gravmag Array | -6/Factory | Scanalyzed Spear | -6/Factory | Scanalyzed Impact Mace | -6/Factory | Scanalyzed Gyrokinetic Inverter | -5/Factory | Scanalyzed Adv. Hacking Suite | -4/Factory | Scanalyzed Imp. Antigrav System | -4/Factory | Scanalyzed Robot Schematics ------------------ None Fabricated ------------ Nothing Alien Tech Used ----------------- None Achievements -------------- None Challenges ------------ None Game ------ Seed SurgeStormMapper Manual? 0 Play Time 02:23:55 Cumulative 45.3 hours Start 2024.08.11 @ 17:05:54 End 2024.12.09 @ 13:19:28 Sessions 5 Manual Loads 0 Difficulty Rogue Special Mode None Game No. 46 Rogue 42 Adventurer 4 Explorer 0 Win Type - Total 0 Types 0/0/0/0/0/0/0/0/0 Lore% 18 Gallery% 41 Achievement% 34 Wizard Run 0 Options --------- Layout 1 ASCII 0 Keyboard 1 Movement Numpad Keybinds 0 Fullscreen 1 Font 24/Smallcaps Map View 50x35 Zoom Use 0% Tactical HUD 1 Map Filters NONE Filters NONE Steam 1 RUN: bd0a658c-41b8-4292-af60-c7aed998d8a7